[Event "Fast Chess"]
[Site "ChessKid.com"]
[Date "2020.04.04"]
[Round "1"]
[White "Rosenkranz, Benjamin"]
[Black "Georgiev, Maximilian"]
[Result "0-1"]
[ECO "C55"]
[WhiteElo "1172"]
[BlackElo "1318"]
[PlyCount "68"]
[EventDate "2020.??.??"]
[TimeControl "900"]
[WhiteClock "0:12:57"]
[BlackClock "0:11:07"]

1. e4 {[%emt 0:00:00]} e5 {[%emt 0:00:01]} 2. Nf3 {[%emt 0:00:01]} Nc6 {
[%emt 0:00:01]} 3. Nc3 {[%emt 0:00:05]} Nf6 {[%emt 0:00:02]} 4. Bc4 {[%emt 0:
00:05]} h6 {[%emt 0:00:02]} 5. d3 {[%emt 0:00:01]} d6 {[%emt 0:00:01]} 6. Be3 {
[%emt 0:00:03]} Be7 {[%emt 0:00:03]} 7. Qd2 {[%emt 0:00:03]} O-O {[%emt 0:00:
03]} 8. O-O-O {[%emt 0:00:02]} Ng4 {[%emt 0:00:03]} 9. Bb5 {[%emt 0:00:07]}
Nxe3 {[%emt 0:00:02]} 10. Qxe3 {[%emt 0:00:06]} Bd7 {[%emt 0:00:03]} 11. Nd5 {
[%emt 0:00:06]} Bg5 {[%emt 0:00:08]} 12. Nxg5 {[%emt 0:00:09]} hxg5 {[%emt 0:
00:01]} 13. Bxc6 {[%emt 0:00:14]} Bxc6 {[%emt 0:00:02]} 14. g4 {[%emt 0:00:06]}
f6 {[%emt 0:00:08]} 15. Rhg1 {[%emt 0:00:08]} a5 {[%emt 0:00:05]} 16. Rg3 {
[%emt 0:00:05]} g6 {[%emt 0:00:07]} 17. Rh3 {[%emt 0:00:03]} a4 {[%emt 0:00:04]
} 18. Nb4 {[%emt 0:00:07]} Kg7 {[%emt 0:00:04]} 19. Nxc6 {[%emt 0:00:03]} bxc6
{[%emt 0:00:03]} 20. f3 {[%emt 0:00:20]} Qb8 {[%emt 0:00:03]} 21. Kd2 {[%emt 0:
00:17]} Qxb2 {[%emt 0:00:05]} 22. d4 {[%emt 0:00:08]} exd4 {[%emt 0:00:05]} 23.
Qd3 {[%emt 0:00:05]} Qb4+ {[%emt 0:00:06]} 24. Ke2 {[%emt 0:00:07]} c5 {
[%emt 0:00:03]} 25. Qd2 {[%emt 0:00:27]} Qc4+ {[%emt 0:00:03]} 26. Kf2 {
[%emt 0:00:03]} a3 {[%emt 0:00:07]} 27. Ra1 {[%emt 0:00:16]} f5 {[%emt 0:00:13]
} 28. gxf5 {[%emt 0:00:02]} gxf5 {[%emt 0:00:01]} 29. exf5 {[%emt 0:00:01]}
Rxf5 {[%emt 0:00:01]} 30. Qe2 {[%emt 0:00:19]} Qxe2+ {[%emt 0:00:03]} 31. Kxe2
{[%emt 0:00:01]} Re5+ {[%emt 0:00:01]} 32. Kd3 {[%emt 0:00:02]} Re3+ {[%emt 0:
00:04]} 33. Kc4 {[%emt 0:00:03]} c6 {[%emt 0:00:02]} 34. Rh5 {[%emt 0:00:10]}
Ra4# {[%emt 0:00:02] TallSnazzyBall won by checkmate} 0-1

[Event "Fast Chess"]
[Site "ChessKid.com"]
[Date "2020.04.04"]
[Round "1"]
[White "Sasse, Gabriel"]
[Black "Hessenberger, Oliver"]
[Result "1-0"]
[ECO "C57"]
[WhiteElo "1274"]
[BlackElo "1117"]
[PlyCount "23"]
[EventDate "2020.??.??"]
[TimeControl "900"]
[WhiteClock "0:13:20"]
[BlackClock "0:14:01"]

1. e4 {[%emt 0:00:00]} e5 {[%emt 0:00:01]} 2. Nf3 {[%emt 0:00:01]} Nc6 {
[%emt 0:00:04]} 3. Bc4 {[%emt 0:00:01]} Nf6 {[%emt 0:00:02]} 4. Ng5 {[%emt 0:
00:01]} Qe7 {[%emt 0:00:06]} 5. b3 {[%emt 0:00:08]} Nxe4 {[%emt 0:00:03]} 6.
Nxe4 {[%emt 0:00:10]} Nd4 {[%emt 0:00:17]} 7. Ba3 {[%emt 0:00:07]} Qh4 {
[%emt 0:00:12]} 8. Kf1 {[%emt 0:00:09]} Bxa3 {[%emt 0:00:08]} 9. Nxa3 {[%emt 0:
00:05]} Qxe4 {[%emt 0:00:17]} 10. Qh5 {[%emt 0:00:09]} Qe2+ {[%emt 0:00:25]}
11. Bxe2 {[%emt 0:00:07]} Nxe2 {[%emt 0:00:06]} 12. Qxe5+ {[%emt 0:00:01]
LimeFarActor won by resignation} 1-0

[Event "Fast Chess"]
[Site "ChessKid.com"]
[Date "2020.04.04"]
[Round "2"]
[White "Georgiev, Maximilian"]
[Black "Hlinka, Patricia"]
[Result "1-0"]
[ECO "C41"]
[WhiteElo "1322"]
[BlackElo "1095"]
[PlyCount "21"]
[EventDate "2020.??.??"]
[TimeControl "900"]
[WhiteClock "0:13:58"]
[BlackClock "0:14:24"]

1. e4 {[%emt 0:00:15]} e5 {[%emt 0:00:00]} 2. Nf3 {[%emt 0:00:01]} d6 {[%emt 0:
00:07]} 3. Bc4 {[%emt 0:00:03]} Bg4 {[%emt 0:00:06]} 4. h3 {[%emt 0:00:02]}
Bxf3 {[%emt 0:00:07]} 5. Qxf3 {[%emt 0:00:01]} Nh6 {[%emt 0:00:05]} 6. d3 {
[%emt 0:00:02]} d5 {[%emt 0:00:06]} 7. Bxd5 {[%emt 0:00:03]} Bc5 {[%emt 0:00:
02]} 8. Bxh6 {[%emt 0:00:03]} Rf8 {[%emt 0:00:11]} 9. Bxg7 {[%emt 0:00:02]} Nd7
{[%emt 0:00:14]} 10. Bxf8 {[%emt 0:00:02]} Nxf8 {[%emt 0:00:04]} 11. Qxf7# {
[%emt 0:00:02] TallSnazzyBall won by checkmate} 1-0

[Event "Fast Chess"]
[Site "ChessKid.com"]
[Date "2020.04.04"]
[Round "2"]
[White "Dai, Lana"]
[Black "Sasse, Gabriel"]
[Result "0-1"]
[ECO "C50"]
[WhiteElo "1218"]
[BlackElo "1281"]
[PlyCount "70"]
[EventDate "2020.??.??"]
[TimeControl "900"]
[WhiteClock "0:12:28"]
[BlackClock "0:08:57"]

1. e4 {[%emt 0:00:10]} e5 {[%emt 0:00:00]} 2. Nf3 {[%emt 0:00:00]} Nc6 {
[%emt 0:00:01]} 3. Bc4 {[%emt 0:00:08]} Bc5 {[%emt 0:00:01]} 4. Nc3 {[%emt 0:
00:03]} Nf6 {[%emt 0:00:06]} 5. d3 {[%emt 0:00:03]} O-O {[%emt 0:00:02]} 6. Bg5
{[%emt 0:00:03]} h6 {[%emt 0:00:03]} 7. Bh4 {[%emt 0:00:02]} Nd4 {[%emt 0:00:
07]} 8. Nd5 {[%emt 0:00:14]} Nxf3+ {[%emt 0:00:09]} 9. gxf3 {[%emt 0:00:05]}
Be7 {[%emt 0:00:03]} 10. Nxe7+ {[%emt 0:00:15]} Qxe7 {[%emt 0:00:02]} 11. Bd5 {
[%emt 0:00:14]} Qd6 {[%emt 0:00:04]} 12. Bxf6 {[%emt 0:00:15]} Qxf6 {[%emt 0:
00:03]} 13. Rg1 {[%emt 0:00:11]} c6 {[%emt 0:00:10]} 14. Bc4 {[%emt 0:00:07]}
d5 {[%emt 0:00:03]} 15. exd5 {[%emt 0:00:02]} cxd5 {[%emt 0:00:02]} 16. Bxd5 {
[%emt 0:00:02]} Rb8 {[%emt 0:00:06]} 17. Qd2 {[%emt 0:00:33]} Be6 {[%emt 0:00:
09]} 18. Bxe6 {[%emt 0:00:05]} fxe6 {[%emt 0:00:01]} 19. O-O-O {[%emt 0:00:09]}
Qxf3 {[%emt 0:00:03]} 20. Rgf1 {[%emt 0:00:22]} Qd5 {[%emt 0:00:04]} 21. Qe3 {
[%emt 0:00:18]} Rbc8 {[%emt 0:00:08]} 22. Kb1 {[%emt 0:00:15]} Qc6 {[%emt 0:00:
09]} 23. Rc1 {[%emt 0:00:10]} Qd5 {[%emt 0:00:04]} 24. Qxa7 {[%emt 0:00:09]}
Ra8 {[%emt 0:00:03]} 25. Qxa8 {[%emt 0:00:25]} Rxa8 {[%emt 0:00:02]} 26. c4 {
[%emt 0:00:16]} Qa5 {[%emt 0:00:07]} 27. a3 {[%emt 0:00:07]} b5 {[%emt 0:00:04]
} 28. cxb5 {[%emt 0:00:07]} Qxb5 {[%emt 0:00:01]} 29. Rfd1 {[%emt 0:00:09]} Rb8
{[%emt 0:00:04]} 30. b4 {[%emt 0:00:05]} Qa6 {[%emt 0:00:03]} 31. Rc7 {[%emt 0:
00:09]} Ra8 {[%emt 0:00:06]} 32. Rc5 {[%emt 0:00:23]} Qxa3 {[%emt 0:00:05]} 33.
Kc2 {[%emt 0:00:10]} Qxb4 {[%emt 0:00:04]} 34. Rxe5 {[%emt 0:00:07]} Rc8+ {
[%emt 0:00:11]} 35. Rc5 {[%emt 0:00:09]} Rxc5# {[%emt 0:00:02] LimeFarActor
won by checkmate} 0-1

[Event "Fast Chess"]
[Site "ChessKid.com"]
[Date "2020.04.04"]
[Round "2"]
[White "Hessenberger, Oliver"]
[Black "Rosenkranz, Benjamin"]
[Result "0-1"]
[ECO "C50"]
[WhiteElo "1101"]
[BlackElo "1179"]
[PlyCount "108"]
[EventDate "2020.??.??"]
[TimeControl "900"]
[WhiteClock "0:09:18"]
[BlackClock "0:08:45"]

1. e4 {[%emt 0:00:00]} e5 {[%emt 0:00:01]} 2. Nf3 {[%emt 0:00:01]} Nc6 {
[%emt 0:00:03]} 3. Nc3 {[%emt 0:00:02]} d6 {[%emt 0:00:01]} 4. Bc4 {[%emt 0:00:
05]} Bg4 {[%emt 0:00:05]} 5. d3 {[%emt 0:00:09]} Qd7 {[%emt 0:00:03]} 6. h3 {
[%emt 0:00:13]} Bxf3 {[%emt 0:00:02]} 7. Qxf3 {[%emt 0:00:05]} Nf6 {[%emt 0:00:
07]} 8. Bg5 {[%emt 0:00:07]} O-O-O {[%emt 0:00:06]} 9. Bxf6 {[%emt 0:00:06]}
gxf6 {[%emt 0:00:02]} 10. Qxf6 {[%emt 0:00:04]} Be7 {[%emt 0:00:19]} 11. Qxf7 {
[%emt 0:00:11]} Nb4 {[%emt 0:00:11]} 12. O-O {[%emt 0:00:05]} Nxc2 {[%emt 0:00:
03]} 13. Rac1 {[%emt 0:00:07]} Nb4 {[%emt 0:00:05]} 14. Nd5 {[%emt 0:00:13]}
Bh4 {[%emt 0:00:16]} 15. Nxb4 {[%emt 0:00:07]} Qxf7 {[%emt 0:00:07]} 16. Bxf7 {
[%emt 0:00:03]} Rhf8 {[%emt 0:00:16]} 17. Be6+ {[%emt 0:00:13]} Kb8 {[%emt 0:
00:07]} 18. Nd5 {[%emt 0:00:05]} Bg5 {[%emt 0:00:19]} 19. Rc2 {[%emt 0:00:07]}
c6 {[%emt 0:00:18]} 20. Nc7 {[%emt 0:00:10]} Kxc7 {[%emt 0:00:07]} 21. Rc3 {
[%emt 0:00:09]} Bd2 {[%emt 0:00:12]} 22. Ra3 {[%emt 0:00:06]} a6 {[%emt 0:00:
07]} 23. Rd1 {[%emt 0:00:09]} Bb4 {[%emt 0:00:06]} 24. Rb3 {[%emt 0:00:04]} Bc5
{[%emt 0:00:05]} 25. Bf5 {[%emt 0:00:15]} h6 {[%emt 0:00:06]} 26. Rc3 {[%emt 0:
00:16]} h5 {[%emt 0:00:07]} 27. b4 {[%emt 0:00:06]} Bxb4 {[%emt 0:00:06]} 28.
Rb3 {[%emt 0:00:07]} Bc5 {[%emt 0:00:04]} 29. Rdb1 {[%emt 0:00:03]} Rb8 {
[%emt 0:00:05]} 30. g4 {[%emt 0:00:12]} hxg4 {[%emt 0:00:03]} 31. Bxg4 {
[%emt 0:00:02]} Rxf2 {[%emt 0:00:07]} 32. Kh1 {[%emt 0:00:08]} b5 {[%emt 0:00:
15]} 33. R3b2 {[%emt 0:00:10]} Rf4 {[%emt 0:00:18]} 34. Be6 {[%emt 0:00:12]}
Re8 {[%emt 0:00:17]} 35. Bf7 {[%emt 0:00:06]} Rxf7 {[%emt 0:00:03]} 36. Rg1 {
[%emt 0:00:05]} Bxg1 {[%emt 0:00:05]} 37. Kxg1 {[%emt 0:00:04]} Rg8+ {[%emt 0:
00:01]} 38. Kh1 {[%emt 0:00:08]} Rh7 {[%emt 0:00:04]} 39. Rh2 {[%emt 0:00:07]}
c5 {[%emt 0:00:07]} 40. d4 {[%emt 0:00:08]} cxd4 {[%emt 0:00:03]} 41. Rc2+ {
[%emt 0:00:14]} Kb6 {[%emt 0:00:02]} 42. Rh2 {[%emt 0:00:04]} d3 {[%emt 0:00:
04]} 43. Rg2 {[%emt 0:00:07]} Rf8 {[%emt 0:00:07]} 44. Kg1 {[%emt 0:00:09]} d5
{[%emt 0:00:12]} 45. exd5 {[%emt 0:00:06]} e4 {[%emt 0:00:01]} 46. Rd2 {
[%emt 0:00:12]} Rxh3 {[%emt 0:00:04]} 47. d6 {[%emt 0:00:04]} Rg3+ {[%emt 0:00:
02]} 48. Kh1 {[%emt 0:00:07]} Rh8+ {[%emt 0:00:01]} 49. Rh2 {[%emt 0:00:03]}
Rxh2+ {[%emt 0:00:01]} 50. Kxh2 {[%emt 0:00:02]} Rg8 {[%emt 0:00:02]} 51. d7 {
[%emt 0:00:08]} d2 {[%emt 0:00:03]} 52. Kh3 {[%emt 0:00:06]} d1=R {[%emt 0:00:
03]} 53. Kh2 {[%emt 0:00:04]} Rxd7 {[%emt 0:00:01]} 54. Kh3 {[%emt 0:00:02]}
Rh7# {[%emt 0:00:02] FineBeamingStage won by checkmate} 0-1

[Event "Fast Chess"]
[Site "ChessKid.com"]
[Date "2020.04.04"]
[Round "3"]
[White "Sasse, Gabriel"]
[Black "Georgiev, Maximilian"]
[Result "0-1"]
[ECO "C55"]
[WhiteElo "1274"]
[BlackElo "1329"]
[PlyCount "116"]
[EventDate "2020.??.??"]
[TimeControl "900"]
[WhiteClock "0:12:29"]
[BlackClock "0:11:44"]

1. e4 {[%emt 0:00:12]} e5 {[%emt 0:00:02]} 2. Nf3 {[%emt 0:00:01]} Nc6 {
[%emt 0:00:01]} 3. Bc4 {[%emt 0:00:01]} h6 {[%emt 0:00:01]} 4. Nc3 {[%emt 0:00:
05]} Nf6 {[%emt 0:00:01]} 5. h3 {[%emt 0:00:04]} Bb4 {[%emt 0:00:02]} 6. O-O {
[%emt 0:00:02]} d6 {[%emt 0:00:02]} 7. a3 {[%emt 0:00:02]} Ba5 {[%emt 0:00:02]}
8. b4 {[%emt 0:00:02]} Bb6 {[%emt 0:00:01]} 9. Nd5 {[%emt 0:00:03]} Nxd5 {
[%emt 0:00:03]} 10. exd5 {[%emt 0:00:02]} Nd4 {[%emt 0:00:05]} 11. Nxd4 {
[%emt 0:00:02]} Bxd4 {[%emt 0:00:01]} 12. Qf3 {[%emt 0:00:05]} Bxa1 {[%emt 0:
00:03]} 13. Qg3 {[%emt 0:00:02]} O-O {[%emt 0:00:03]} 14. d3 {[%emt 0:00:02]}
Bd4 {[%emt 0:00:04]} 15. Bxh6 {[%emt 0:00:03]} e4 {[%emt 0:00:05]} 16. Qxg7+ {
[%emt 0:00:02]} Bxg7 {[%emt 0:00:02]} 17. Bxg7 {[%emt 0:00:03]} Kxg7 {[%emt 0:
00:01]} 18. Bb5 {[%emt 0:00:03]} a6 {[%emt 0:00:05]} 19. Bc4 {[%emt 0:00:02]}
exd3 {[%emt 0:00:02]} 20. cxd3 {[%emt 0:00:01]} b5 {[%emt 0:00:03]} 21. Ba2 {
[%emt 0:00:03]} Qg5 {[%emt 0:00:04]} 22. Bb1 {[%emt 0:00:03]} Bxh3 {[%emt 0:00:
03]} 23. g3 {[%emt 0:00:10]} Bxf1 {[%emt 0:00:02]} 24. Kxf1 {[%emt 0:00:01]}
Qc1+ {[%emt 0:00:01]} 25. Ke2 {[%emt 0:00:02]} Rfe8+ {[%emt 0:00:02]} 26. Kf3 {
[%emt 0:00:02]} Qe3+ {[%emt 0:00:01]} 27. fxe3 {[%emt 0:00:03]} Re7 {[%emt 0:
00:06]} 28. e4 {[%emt 0:00:03]} Rh8 {[%emt 0:00:03]} 29. e5 {[%emt 0:00:07]}
dxe5 {[%emt 0:00:03]} 30. Ke4 {[%emt 0:00:08]} Kg6 {[%emt 0:00:05]} 31. d4 {
[%emt 0:00:06]} f5+ {[%emt 0:00:02]} 32. Kd3 {[%emt 0:00:06]} exd4 {[%emt 0:00:
02]} 33. Kxd4 {[%emt 0:00:01]} Re1 {[%emt 0:00:04]} 34. Bd3 {[%emt 0:00:05]}
Rg1 {[%emt 0:00:04]} 35. g4 {[%emt 0:00:11]} Rxg4+ {[%emt 0:00:02]} 36. Ke5 {
[%emt 0:00:01]} Kf7 {[%emt 0:00:09]} 37. Bxf5 {[%emt 0:00:02]} Re8+ {[%emt 0:
00:03]} 38. Be6+ {[%emt 0:00:07]} Kg6 {[%emt 0:00:04]} 39. d6 {[%emt 0:00:07]}
cxd6+ {[%emt 0:00:02]} 40. Kxd6 {[%emt 0:00:01]} Rd4+ {[%emt 0:00:03]} 41. Ke5
{[%emt 0:00:02]} Rd1 {[%emt 0:00:04]} 42. Kf4 {[%emt 0:00:15]} Rf1+ {[%emt 0:
00:02]} 43. Ke5 {[%emt 0:00:02]} Re1+ {[%emt 0:00:01]} 44. Kf4 {[%emt 0:00:01]}
R1xe6 {[%emt 0:00:02]} 45. a4 {[%emt 0:00:01]} Rf8+ {[%emt 0:00:01]} 46. Kg4 {
[%emt 0:00:02]} Re4+ {[%emt 0:00:01]} 47. Kg3 {[%emt 0:00:03]} Kf6 {[%emt 0:00:
03]} 48. Kf3 {[%emt 0:00:01]} Re7 {[%emt 0:00:06]} 49. Kf4 {[%emt 0:00:02]}
Ke6+ {[%emt 0:00:05]} 50. Ke4 {[%emt 0:00:02]} Kd6+ {[%emt 0:00:01]} 51. Kd4 {
[%emt 0:00:02]} Rf4+ {[%emt 0:00:05]} 52. Kc3 {[%emt 0:00:03]} Re3+ {[%emt 0:
00:02]} 53. Kd2 {[%emt 0:00:02]} Rh3 {[%emt 0:00:01]} 54. Ke2 {[%emt 0:00:02]}
Rxb4 {[%emt 0:00:01]} 55. axb5 {[%emt 0:00:03]} axb5 {[%emt 0:00:03]} 56. Kf2 {
[%emt 0:00:01]} Rb2+ {[%emt 0:00:01]} 57. Kg1 {[%emt 0:00:03]} Ra3 {[%emt 0:00:
02]} 58. Kf1 {[%emt 0:00:03]} Ra1# {[%emt 0:00:00] TallSnazzyBall won by
checkmate} 0-1

[Event "Fast Chess"]
[Site "ChessKid.com"]
[Date "2020.04.04"]
[Round "3"]
[White "Hlinka, Patricia"]
[Black "Rosenkranz, Benjamin"]
[Result "0-1"]
[ECO "D02"]
[WhiteElo "1089"]
[BlackElo "1185"]
[PlyCount "84"]
[EventDate "2020.??.??"]
[TimeControl "900"]
[WhiteClock "0:11:00"]
[BlackClock "0:09:08"]

1. d4 {[%emt 0:00:00]} d5 {[%emt 0:00:07]} 2. Nf3 {[%emt 0:00:03]} Nc6 {
[%emt 0:00:02]} 3. Nc3 {[%emt 0:00:06]} Bf5 {[%emt 0:00:06]} 4. g3 {[%emt 0:00:
10]} Nb4 {[%emt 0:00:10]} 5. a3 {[%emt 0:00:05]} Nxc2+ {[%emt 0:00:02]} 6. Kd2
{[%emt 0:00:09]} Nxa1 {[%emt 0:00:01]} 7. a4 {[%emt 0:00:11]} Qd6 {[%emt 0:00:
08]} 8. a5 {[%emt 0:00:03]} O-O-O {[%emt 0:00:05]} 9. Bg2 {[%emt 0:00:14]} Be4
{[%emt 0:00:06]} 10. Ke3 {[%emt 0:00:09]} Bxf3 {[%emt 0:00:02]} 11. Kxf3 {
[%emt 0:00:02]} Nf6 {[%emt 0:00:08]} 12. Bg5 {[%emt 0:00:15]} e6 {[%emt 0:00:
12]} 13. Bd2 {[%emt 0:00:05]} Be7 {[%emt 0:00:25]} 14. Qxa1 {[%emt 0:00:08]}
Nh5 {[%emt 0:00:07]} 15. g4 {[%emt 0:00:04]} Nf6 {[%emt 0:00:06]} 16. Bf4 {
[%emt 0:00:11]} Qc6 {[%emt 0:00:16]} 17. Bd2 {[%emt 0:00:15]} Bb4 {[%emt 0:00:
05]} 18. b3 {[%emt 0:00:06]} Bxc3 {[%emt 0:00:02]} 19. Bxc3 {[%emt 0:00:07]} h5
{[%emt 0:00:09]} 20. gxh5 {[%emt 0:00:03]} Nxh5 {[%emt 0:00:02]} 21. e3 {
[%emt 0:00:10]} Nf6 {[%emt 0:00:14]} 22. e4 {[%emt 0:00:10]} dxe4+ {[%emt 0:00:
03]} 23. Kg3 {[%emt 0:00:15]} Nh5+ {[%emt 0:00:04]} 24. Kh4 {[%emt 0:00:05]}
Nf4+ {[%emt 0:00:08]} 25. Kg3 {[%emt 0:00:22]} Nxg2 {[%emt 0:00:02]} 26. Kxg2 {
[%emt 0:00:07]} e3+ {[%emt 0:00:01]} 27. Kg1 {[%emt 0:00:08]} exf2+ {[%emt 0:
00:05]} 28. Kxf2 {[%emt 0:00:03]} Rh3 {[%emt 0:00:06]} 29. Kg1 {[%emt 0:00:08]}
Qf3 {[%emt 0:00:05]} 30. Qa2 {[%emt 0:00:12]} Qxc3 {[%emt 0:00:05]} 31. Kg2 {
[%emt 0:00:08]} Rxd4 {[%emt 0:00:05]} 32. Qb1 {[%emt 0:00:21]} Rd2+ {[%emt 0:
00:06]} 33. Kg1 {[%emt 0:00:08]} Re3 {[%emt 0:00:07]} 34. Kf1 {[%emt 0:00:09]}
Rf3+ {[%emt 0:00:08]} 35. Ke1 {[%emt 0:00:06]} Rb2+ {[%emt 0:00:03]} 36. Kd1 {
[%emt 0:00:09]} Rxb1+ {[%emt 0:00:01]} 37. Ke2 {[%emt 0:00:04]} Rxh1 {[%emt 0:
00:02]} 38. h4 {[%emt 0:00:08]} Qc2+ {[%emt 0:00:01]} 39. Kxf3 {[%emt 0:00:13]}
Re1 {[%emt 0:00:06]} 40. Kg4 {[%emt 0:00:08]} Rf1 {[%emt 0:00:02]} 41. h5 {
[%emt 0:00:07]} Qg2+ {[%emt 0:00:04]} 42. Kh4 {[%emt 0:00:06]} Rh1# {[%emt 0:
00:02] FineBeamingStage won by checkmate} 0-1

[Event "Fast Chess"]
[Site "ChessKid.com"]
[Date "2020.04.04"]
[Round "3"]
[White "Hessenberger, Oliver"]
[Black "Dai, Lana"]
[Result "0-1"]
[ECO "C42"]
[WhiteElo "1089"]
[BlackElo "1225"]
[PlyCount "41"]
[EventDate "2020.??.??"]
[TimeControl "900"]
[WhiteClock "0:12:23"]
[BlackClock "0:10:58"]

1. e4 {[%emt 0:00:00]} e5 {[%emt 0:00:02]} 2. Nf3 {[%emt 0:00:01]} Nf6 {
[%emt 0:00:03]} 3. Nxe5 {[%emt 0:00:04]} Qe7 {[%emt 0:00:01]} 4. Nc4 {[%emt 0:
00:25]} Nxe4 {[%emt 0:00:03]} 5. d4 {[%emt 0:00:10]} Nc3+ {[%emt 0:00:07]} 6.
Qe2 {[%emt 0:00:23]} Nxe2 {[%emt 0:00:02]} 7. Bxe2 {[%emt 0:00:02]} Qb4+ {
[%emt 0:00:11]} 8. Bd2 {[%emt 0:00:05]} Qxb2 {[%emt 0:00:03]} 9. Bc3 {[%emt 0:
00:13]} Qxc2 {[%emt 0:00:15]} 10. a4 {[%emt 0:00:19]} d5 {[%emt 0:00:17]} 11.
Ne5 {[%emt 0:00:14]} Qe4 {[%emt 0:00:08]} 12. O-O {[%emt 0:00:13]} Qxe2 {
[%emt 0:00:04]} 13. Nd2 {[%emt 0:00:03]} Qh5 {[%emt 0:00:15]} 14. Rae1 {
[%emt 0:00:07]} Be7 {[%emt 0:00:11]} 15. Nef3 {[%emt 0:00:39]} Bg4 {[%emt 0:00:
06]} 16. Ne5 {[%emt 0:00:14]} Be2 {[%emt 0:00:06]} 17. Ndf3 {[%emt 0:00:19]}
Bxf1 {[%emt 0:00:10]} 18. Kxf1 {[%emt 0:00:05]} O-O {[%emt 0:00:09]} 19. Nd7 {
[%emt 0:00:10]} Nxd7 {[%emt 0:00:17]} 20. Rxe7 {[%emt 0:00:05]} Rad8 {[%emt 0:
00:07]} 21. Re3 {[%emt 0:00:11] TopBrownCave won by resignation} 0-1

[Event "Fast Chess"]
[Site "ChessKid.com"]
[Date "2020.04.05"]
[Round "1"]
[White "Hlinka, Patrick"]
[Black "Georgiev, Maximilian"]
[Result "0-1"]
[ECO "C24"]
[WhiteElo "1065"]
[BlackElo "1338"]
[PlyCount "136"]
[EventDate "2020.??.??"]
[TimeControl "180"]
[WhiteClock "0:00:23"]
[BlackClock "0:00:01"]

1. e4 {[%emt 0:00:01]} e5 {[%emt 0:00:01]} 2. Bc4 {[%emt 0:00:01]} Nf6 {
[%emt 0:00:03]} 3. d3 {[%emt 0:00:02]} Nc6 {[%emt 0:00:02]} 4. Bg5 {[%emt 0:00:
01]} h6 {[%emt 0:00:02]} 5. Bxf6 {[%emt 0:00:01]} Qxf6 {[%emt 0:00:01]} 6. Qf3
{[%emt 0:00:09]} Qxf3 {[%emt 0:00:02]} 7. Nxf3 {[%emt 0:00:02]} Be7 {[%emt 0:
00:03]} 8. c3 {[%emt 0:00:05]} O-O {[%emt 0:00:02]} 9. d4 {[%emt 0:00:01]} exd4
{[%emt 0:00:02]} 10. Nxd4 {[%emt 0:00:03]} Nxd4 {[%emt 0:00:02]} 11. cxd4 {
[%emt 0:00:01]} Bb4+ {[%emt 0:00:02]} 12. Nc3 {[%emt 0:00:04]} Bxc3+ {[%emt 0:
00:01]} 13. bxc3 {[%emt 0:00:01]} d6 {[%emt 0:00:01]} 14. O-O-O {[%emt 0:00:01]
} Bd7 {[%emt 0:00:02]} 15. e5 {[%emt 0:00:02]} dxe5 {[%emt 0:00:04]} 16. dxe5 {
[%emt 0:00:01]} Ba4 {[%emt 0:00:04]} 17. Bb3 {[%emt 0:00:08]} Bxb3 {[%emt 0:00:
01]} 18. axb3 {[%emt 0:00:01]} Rae8 {[%emt 0:00:02]} 19. Rd7 {[%emt 0:00:04]}
Rxe5 {[%emt 0:00:03]} 20. Rxc7 {[%emt 0:00:01]} Rb8 {[%emt 0:00:03]} 21. Kd1 {
[%emt 0:00:05]} Rd5+ {[%emt 0:00:02]} 22. Kc1 {[%emt 0:00:04]} Rf5 {[%emt 0:00:
05]} 23. Rf1 {[%emt 0:00:03]} Rh5 {[%emt 0:00:02]} 24. h3 {[%emt 0:00:02]} Rg5
{[%emt 0:00:02]} 25. g3 {[%emt 0:00:02]} f6 {[%emt 0:00:03]} 26. h4 {[%emt 0:
00:03]} Rb5 {[%emt 0:00:02]} 27. b4 {[%emt 0:00:02]} Rb6 {[%emt 0:00:03]} 28.
g4 {[%emt 0:00:06]} Rd6 {[%emt 0:00:01]} 29. Rd1 {[%emt 0:00:03]} Rxd1+ {
[%emt 0:00:02]} 30. Kxd1 {[%emt 0:00:01]} a6 {[%emt 0:00:05]} 31. c4 {[%emt 0:
00:03]} b5 {[%emt 0:00:02]} 32. cxb5 {[%emt 0:00:02]} Rxb5 {[%emt 0:00:02]} 33.
g5 {[%emt 0:00:08]} fxg5 {[%emt 0:00:03]} 34. hxg5 {[%emt 0:00:01]} Rxg5 {
[%emt 0:00:02]} 35. Rb7 {[%emt 0:00:05]} Rf5 {[%emt 0:00:02]} 36. Ke1 {[%emt 0:
00:03]} Rf4 {[%emt 0:00:01]} 37. Rb6 {[%emt 0:00:04]} g5 {[%emt 0:00:05]} 38.
Rxh6 {[%emt 0:00:06]} Rxb4 {[%emt 0:00:02]} 39. Rxa6 {[%emt 0:00:03]} Rb1+ {
[%emt 0:00:04]} 40. Ke2 {[%emt 0:00:05]} Rb5 {[%emt 0:00:05]} 41. Rg6+ {
[%emt 0:00:04]} Kf7 {[%emt 0:00:02]} 42. Rh6 {[%emt 0:00:03]} Kg7 {[%emt 0:00:
02]} 43. Rh5 {[%emt 0:00:01]} Kg6 {[%emt 0:00:03]} 44. Rh8 {[%emt 0:00:06]}
Re5+ {[%emt 0:00:04]} 45. Kf1 {[%emt 0:00:03]} g4 {[%emt 0:00:02]} 46. Rg8+ {
[%emt 0:00:03]} Kh5 {[%emt 0:00:04]} 47. Rh8+ {[%emt 0:00:03]} Kg5 {[%emt 0:00:
02]} 48. Kg2 {[%emt 0:00:03]} Kf4 {[%emt 0:00:02]} 49. Rh4 {[%emt 0:00:03]} Rg5
{[%emt 0:00:03]} 50. Rh2 {[%emt 0:00:10]} Kf5 {[%emt 0:00:03]} 51. Rh4 {
[%emt 0:00:03]} Kg6 {[%emt 0:00:03]} 52. f3 {[%emt 0:00:04]} gxf3+ {[%emt 0:00:
02]} 53. Kxf3 {[%emt 0:00:01]} Rf5+ {[%emt 0:00:01]} 54. Rf4 {[%emt 0:00:02]}
Ra5 {[%emt 0:00:04]} 55. Rg4+ {[%emt 0:00:01]} Kf7 {[%emt 0:00:04]} 56. Kf4 {
[%emt 0:00:00]} Ke7 {[%emt 0:00:01]} 57. Rg5 {[%emt 0:00:00]} Ra4+ {[%emt 0:00:
02]} 58. Kf5 {[%emt 0:00:01]} Ra5+ {[%emt 0:00:01]} 59. Kg6 {[%emt 0:00:03]}
Ra6+ {[%emt 0:00:03]} 60. Kf5 {[%emt 0:00:03]} Ra4 {[%emt 0:00:03]} 61. Kg6 {
[%emt 0:00:00]} Rd4 {[%emt 0:00:02]} 62. Kf5 {[%emt 0:00:00]} Kd7 {[%emt 0:00:
02]} 63. Kg6 {[%emt 0:00:00]} Kc8 {[%emt 0:00:01]} 64. Kf5 {[%emt 0:00:00]} Kb7
{[%emt 0:00:01]} 65. Kg6 {[%emt 0:00:00]} Kb6 {[%emt 0:00:01]} 66. Kf5 {
[%emt 0:00:00]} Ka6 {[%emt 0:00:01]} 67. Kg6 {[%emt 0:00:00]} Rd6+ {[%emt 0:00:
01]} 68. Kf5 {[%emt 0:00:00]} Rd5+ {[%emt 0:00:01] TallSnazzyBall won on time}
0-1

[Event "Fast Chess"]
[Site "ChessKid.com"]
[Date "2020.04.05"]
[Round "1"]
[White "Sasse, Gabriel"]
[Black "Hlinka, Patricia"]
[Result "1-0"]
[ECO "C41"]
[WhiteElo "1270"]
[BlackElo "1030"]
[PlyCount "45"]
[EventDate "2020.??.??"]
[TimeControl "180"]
[WhiteClock "0:00:34"]
[BlackClock "0:01:29"]

1. e4 {[%emt 0:00:00]} e5 {[%emt 0:00:01]} 2. Nf3 {[%emt 0:00:01]} d6 {[%emt 0:
00:03]} 3. Bc4 {[%emt 0:00:01]} c6 {[%emt 0:00:11]} 4. d3 {[%emt 0:00:02]} c5 {
[%emt 0:00:03]} 5. Ng5 {[%emt 0:00:04]} b6 {[%emt 0:00:10]} 6. Nxf7 {[%emt 0:
00:02]} Qc7 {[%emt 0:00:14]} 7. Nxh8 {[%emt 0:00:02]} g5 {[%emt 0:00:09]} 8.
Bxg8 {[%emt 0:00:03]} Be7 {[%emt 0:00:08]} 9. Bf7+ {[%emt 0:00:03]} Kd8 {
[%emt 0:00:12]} 10. O-O {[%emt 0:00:06]} g4 {[%emt 0:00:04]} 11. Bh6 {[%emt 0:
00:27]} c4 {[%emt 0:00:09]} 12. dxc4 {[%emt 0:00:02]} d5 {[%emt 0:00:04]} 13.
exd5 {[%emt 0:00:02]} Qc6 {[%emt 0:00:01]} 14. dxc6+ {[%emt 0:00:01]} Kc7 {
[%emt 0:00:06]} 15. Nc3 {[%emt 0:00:15]} Nxc6 {[%emt 0:00:04]} 16. Nd5+ {
[%emt 0:00:02]} Kb8 {[%emt 0:00:09]} 17. Nxe7 {[%emt 0:00:01]} Nxe7 {[%emt 0:
00:06]} 18. Qd6+ {[%emt 0:00:02]} Kb7 {[%emt 0:00:07]} 19. Qxe7+ {[%emt 0:00:
02]} Kb8 {[%emt 0:00:05]} 20. Qxe5+ {[%emt 0:00:02]} Kb7 {[%emt 0:00:08]} 21.
Bd5+ {[%emt 0:00:03]} Ka6 {[%emt 0:00:09]} 22. Bxa8 {[%emt 0:00:06]} Bb7 {
[%emt 0:00:05]} 23. Qb5# {[%emt 0:00:02] LimeFarActor won by checkmate} 1-0